bitfinex/quotes_BTCUSD_20241222
["timestamp","ask_amount","ask_price","bid_price","bid_amount"]
[1734877058835,0.023,96663.0,96657.0,0.00650759]
[1734877059178,0.023,96663.0,96656.0,8.57e-05]
[1734877059441,0.023,96661.0,96658.0,0.00650549]
[1734877059642,0.023,96663.0,96657.0,0.00650759]
[1734877059843,0.023,96663.0,96656.0,8.57e-05]
[1734877060568,0.023,96663.0,96656.0,0.0020857]
[1734877061000,0.023,96663.0,96656.0,8.57e-05]
[1734877061196,0.024,96663.0,96656.0,0.0020857]
[1734877061676,0.023,96663.0,96656.0,8.57e-05]
[1734877061879,0.024,96663.0,96656.0,0.0020857]
[1734877062030,0.206906,96662.0,96656.0,8.57e-05]
[1734877062433,0.023,96661.0,96656.0,0.0020857]
[1734877062953,0.001,96663.0,96656.0,0.0020857]
[1734877063157,0.001,96663.0,96656.0,0.1033941]
[1734877063517,0.0231714,96666.0,96657.0,0.00650814]
[1734877063947,0.001,96663.0,96657.0,0.00650814]
[1734877064335,0.0001714,96666.0,96659.0,0.206912]
[1734877064551,0.001,96663.0,96660.0,0.18314282]
[1734877064724,0.001,96663.0,96660.0,0.18967224]
[1734877064923,0.0001714,96666.0,96660.0,0.18967224]
[1734877065495,0.0001714,96666.0,96661.0,0.413815]
[1734877065703,0.001,96663.0,96662.0,0.30924881]
[1734877065904,0.001,96663.0,96662.0,0.31477531]
[1734877066696,0.001,96663.0,96662.0,0.39557531]
[1734877067114,0.0001714,96666.0,96663.0,0.206904]
[1734877067321,0.0011714,96666.0,96665.0,0.2069]
[1734877067571,0.0001714,96666.0,96665.0,0.4890084]
[1734877067762,0.0001714,96666.0,96665.0,0.49553367]
[1734877067968,0.0001714,96666.0,96665.0,0.527806]
[1734877068527,0.0011714,96666.0,96665.0,0.529806]
[1734877068731,0.0001714,96666.0,96665.0,0.527806]
[1734877069285,0.0001714,96666.0,96665.0,0.49553367]
[1734877069859,0.0001714,96666.0,96665.0,0.66722233]
[1734877070089,0.0011714,96666.0,96665.0,0.76922233]
[1734877070268,0.0011714,96666.0,96665.0,0.81902233]
[1734877070866,0.0001714,96666.0,96665.0,0.81702233]
[1734877071079,0.0001714,96666.0,96665.0,0.67759429]
[1734877071291,0.0021714,96666.0,96665.0,0.67759429]
[1734877071493,0.0001714,96666.0,96665.0,0.67759429]
[1734877071896,0.0021714,96666.0,96665.0,0.67759429]
[1734877073514,0.0021714,96666.0,96665.0,0.82759429]
[1734877076278,0.0001714,96701.0,96700.0,0.206825]
[1734877076435,0.0001714,96701.0,96700.0,0.3081334]
[1734877076634,0.0001714,96701.0,96700.0,0.31453802]
[1734877077629,0.0011714,96701.0,96700.0,0.31653802]
[1734877078029,0.0011714,96701.0,96700.0,0.10971302]
[1734877078314,0.0011714,96701.0,96700.0,0.11074699]
[1734877078859,0.00132864,96701.0,96700.0,0.11074699]
[1734877079699,0.00132864,96701.0,96700.0,0.10971302]
[1734877079904,0.10302864,96701.0,96700.0,0.10971302]
[1734877080213,0.10302864,96701.0,96700.0,0.1033084]
[1734877080417,0.30985164,96701.0,96700.0,0.1033084]
[1734877080735,0.10302864,96701.0,96700.0,0.1033084]
[1734877081158,0.10302864,96701.0,96700.0,0.10966153]
[1734877081367,0.14902864,96701.0,96700.0,0.002]
[1734877081563,0.29902864,96701.0,96700.0,0.00835736]
[1734877081790,0.31979951,96701.0,96700.0,0.002]
[1734877081990,0.282268,96680.0,96679.0,0.09270475]
[1734877082192,0.305268,96680.0,96679.0,0.09270475]
[1734877082837,0.305268,96680.0,96656.0,0.29970845]
[1734877082838,0.206887,96671.0,96656.0,0.29970845]
[1734877082958,0.206887,96671.0,96657.0,0.1013084]
[1734877084127,0.206889,96670.0,96657.0,0.10185129]
[1734877084305,0.413778,96670.0,96657.0,0.10185129]
[1734877084696,0.023,96668.0,96657.0,0.10185129]
[1734877084897,0.20691,96661.0,96657.0,0.10185129]
[1734877086345,0.41382,96661.0,96657.0,0.10185129]
[1734877086496,0.023,96660.0,96657.0,0.00054289]
[1734877086716,0.023,96658.0,96657.0,0.00054289]
[1734877089538,0.024,96658.0,96657.0,0.00054289]
[1734877090304,0.069,96658.0,96657.0,0.00054289]
[1734877093976,0.069,96658.0,96657.0,0.00062859]
[1734877094310,0.024,96658.0,96657.0,0.00062859]
[1734877097590,0.105,96658.0,96657.0,0.00062859]
[1734877101634,0.001,96658.0,96657.0,0.00062859]
[1734877103846,0.001,96658.0,96657.0,0.10193699]
[1734877103986,0.001,96658.0,96657.0,0.1029714]
[1734877104189,0.001,96658.0,96657.0,0.1852714]
[1734877104595,0.001,96658.0,96657.0,0.2350714]
[1734877104911,0.001,96658.0,96657.0,0.23403699]
[1734877105890,0.20687,96679.0,96657.0,0.23403699]
[1734877105891,0.023,96678.0,96667.0,0.206894]
[1734877106116,0.206852,96688.0,96668.0,0.10234277]
[1734877106316,0.206873,96678.0,96668.0,0.10234277]
[1734877106581,0.206835,96695.0,96668.0,0.1013084]
[1734877106582,0.413771,96672.0,96668.0,0.1013084]
[1734877106936,0.206915,96658.0,96657.0,0.00362859]
[1734877107136,0.206915,96658.0,96657.0,0.10493699]
[1734877107799,0.229915,96658.0,96657.0,0.10493699]
[1734877107998,0.023,96658.0,96657.0,0.10493699]
[1734877108222,0.023,96663.0,96657.0,0.10193699]
[1734877108439,0.023,96665.0,96658.0,0.1013084]
[1734877108639,0.023,96669.0,96658.0,0.1013084]
[1734877108849,0.023,96674.0,96659.0,0.20794647]
[1734877109049,0.206879,96675.0,96660.0,0.1013084]
[1734877109259,0.206879,96675.0,96661.0,0.00103438]
[1734877109459,0.206879,96675.0,96662.0,0.10234278]
[1734877110387,0.023,96674.0,96662.0,0.10234278]
[1734877110735,0.206872,96678.0,96662.0,0.10234278]
[1734877110938,0.023,96674.0,96662.0,0.1013084]
[1734877111102,0.206894,96668.0,96662.0,0.1013084]
[1734877111299,0.023,96667.0,96662.0,0.1013084]
[1734877111588,0.023,96667.0,96662.0,0.1043084]
[1734877111589,0.023,96664.0,96662.0,0.1043084]
[1734877111801,0.206904,96663.0,96662.0,0.1043084]
[1734877112003,0.306304,96663.0,96662.0,0.003]
[1734877112531,0.023,96663.0,96662.0,0.003]
[1734877112732,0.023,96661.0,96657.0,0.00062859]
[1734877112935,0.023,96661.0,96658.0,0.1013084]
[1734877113558,0.413821,96660.0,96657.0,0.00062859]
[1734877113865,0.023,96658.0,96657.0,0.00062859]
[1734877114090,0.023,96658.0,96657.0,0.10193699]
[1734877114304,0.20691,96660.0,96657.0,0.10193699]
[1734877114530,0.023,96659.0,96658.0,0.1043084]
[1734877114814,0.023,96659.0,96658.0,0.1013084]
[1734877116635,0.023,96659.0,96657.0,0.00062859]
[1734877116846,0.306315,96658.0,96657.0,0.00362859]
[1734877117005,0.355015,96658.0,96657.0,0.00362859]
[1734877117833,0.355015,96658.0,96657.0,0.00062859]
[1734877120595,0.505015,96658.0,96657.0,0.00362859]
[1734877121162,0.505015,96658.0,96657.0,0.00062859]
[1734877121362,0.505015,96658.0,96657.0,0.00362859]
[1734877123947,0.51517573,96658.0,96657.0,0.00362859]
[1734877124390,0.505015,96658.0,96657.0,0.00362859]
[1734877125677,0.306315,96658.0,96657.0,0.00362859]
[1734877127136,0.6042234,96658.0,96657.0,0.00362859]
[1734877128769,0.6042234,96658.0,96657.0,0.00062859]
[1734877128929,0.6072234,96658.0,96657.0,0.00062859]
[1734877131078,0.6042234,96658.0,96657.0,0.00062859]
[1734877131299,0.6072234,96658.0,96657.0,0.00062859]
[1734877131763,0.6042234,96658.0,96657.0,0.00062859]
[1734877132098,0.6092234,96658.0,96657.0,0.00062859]
[1734877135221,0.7092234,96658.0,96657.0,0.00062859]
[1734877135757,0.7042234,96658.0,96657.0,0.00062859]
[1734877136535,0.7092234,96658.0,96657.0,0.00062859]
[1734877137790,0.7092234,96658.0,96657.0,0.00704159]
[1734877147262,0.1,96656.0,96648.0,0.00930669]
[1734877147463,0.508664,96635.0,96634.0,8.57e-05]
[1734877148442,0.7099724,96635.0,96634.0,8.57e-05]
[1734877148656,0.7099724,96635.0,96634.0,0.0030857]
[1734877148860,0.7099724,96635.0,96634.0,8.57e-05]
[1734877149273,0.7099724,96635.0,96631.0,4e-07]
[1734877149274,0.3554,96632.0,96631.0,4e-07]
[1734877149530,0.55340155,96632.0,96631.0,4e-07]
[1734877150809,0.52239038,96632.0,96631.0,4e-07]
[1734877152077,0.53286486,96632.0,96631.0,4e-07]
[1734877152488,0.54086486,96632.0,96631.0,4e-07]
[1734877153084,0.56123321,96632.0,96631.0,4e-07]
[1734877154715,0.3054,96612.0,96610.0,8.57e-05]
[1734877154918,0.207056,96592.0,96582.0,0.004143]
[1734877155134,0.462456,96592.0,96569.0,8.57e-05]
[1734877155345,0.5637644,96592.0,96569.0,8.57e-05]
[1734877155543,0.68314638,96592.0,96569.0,8.57e-05]
[1734877155744,0.72944638,96592.0,96569.0,8.57e-05]
[1734877156233,0.75849313,96592.0,96569.0,8.57e-05]
[1734877156400,0.76502868,96592.0,96569.0,8.57e-05]
[1734877156985,0.76702868,96592.0,96569.0,8.57e-05]
[1734877157236,0.76502868,96592.0,96569.0,8.57e-05]
[1734877158010,0.66502868,96592.0,96569.0,8.57e-05]
[1734877158165,0.76502868,96592.0,96569.0,8.57e-05]
[1734877158384,0.67532911,96592.0,96569.0,8.57e-05]
[1734877158570,0.6560703,96592.0,96569.0,8.57e-05]
[1734877159219,0.64328919,96592.0,96569.0,8.57e-05]
[1734877159415,0.59698919,96592.0,96569.0,8.57e-05]
[1734877159848,0.51458919,96592.0,96569.0,8.57e-05]
[1734877161250,0.41328079,96592.0,96569.0,0.2071887]
[1734877161579,0.40298036,96592.0,96573.0,0.207095]
[1734877161729,0.40298036,96592.0,96569.0,8.57e-05]
[1734877162445,0.17292436,96592.0,96578.0,0.207084]
[1734877162620,0.02292436,96592.0,96578.0,0.288184]
[1734877163027,0.00354238,96592.0,96578.0,0.288184]
[1734877163395,0.00354238,96592.0,96583.0,0.207074]
[1734877163806,0.00354238,96592.0,96587.0,0.2071507]
[1734877163978,0.00354238,96592.0,96587.0,8.57e-05]
[1734877164913,0.02654238,96592.0,96587.0,8.57e-05]
[1734877165111,0.02354238,96592.0,96587.0,8.57e-05]
[1734877165287,0.00054238,96592.0,96587.0,8.57e-05]
[1734877165814,0.00054238,96592.0,96591.0,0.00496098]
[1734877166056,0.00054238,96592.0,96591.0,0.0001]
[1734877166230,0.02454238,96592.0,96591.0,0.00496098]
[1734877166465,0.02454238,96592.0,96591.0,0.0001]
[1734877166466,0.02354238,96592.0,96591.0,0.0001]
[1734877166671,0.00054238,96592.0,96591.0,0.00496098]
[1734877166849,0.02454238,96592.0,96591.0,0.0001]
[1734877167050,0.02454238,96592.0,96591.0,0.00496098]
[1734877167365,0.02454238,96592.0,96591.0,0.0001]
[1734877167565,0.02454238,96592.0,96591.0,0.00496098]
[1734877167683,0.02454238,96592.0,96591.0,0.0001858]
[1734877167888,0.02454238,96592.0,96591.0,0.00504678]
[1734877168148,0.02454238,96592.0,96591.0,0.0001858]
[1734877168291,0.02454238,96592.0,96591.0,0.00504678]
[1734877168497,0.02454238,96592.0,96591.0,0.0001858]
[1734877169688,0.02354238,96592.0,96591.0,0.0001858]
[1734877170014,0.02454238,96592.0,96591.0,0.0001858]
[1734877171542,0.02354238,96592.0,96591.0,0.0001858]
[1734877171748,0.00054238,96592.0,96591.0,0.0001858]
[1734877172518,0.02454238,96592.0,96591.0,0.0001858]
[1734877174064,0.02454238,96592.0,96591.0,0.0812858]
[1734877174427,0.02454238,96592.0,96591.0,0.08614678]
[1734877175293,0.02454238,96592.0,96591.0,0.00504678]
[1734877175970,0.02454238,96592.0,96591.0,0.0001858]
[1734877176116,0.0438575,96592.0,96591.0,0.0001858]
[1734877177309,0.0438575,96592.0,96591.0,0.00502727]
[1734877177436,0.0438575,96592.0,96591.0,0.0001858]
[1734877177617,0.0438575,96592.0,96591.0,0.00502727]
[1734877177834,0.0438575,96592.0,96591.0,0.0001858]
[1734877178672,0.0438575,96592.0,96591.0,0.00502727]
[1734877178915,0.0438575,96592.0,96591.0,0.0001858]
[1734877179163,0.0438575,96592.0,96591.0,0.00502727]
[1734877179318,0.0438575,96592.0,96591.0,0.0001858]
[1734877179516,0.0438575,96592.0,96591.0,0.00502727]
[1734877179724,0.0438575,96592.0,96591.0,0.0001858]
[1734877179950,0.0438575,96592.0,96591.0,0.00502727]
[1734877180149,0.0438575,96592.0,96591.0,0.0001858]
[1734877180325,0.0438575,96592.0,96591.0,0.00502727]
[1734877181426,0.0438575,96592.0,96591.0,0.0001858]
[1734877184455,0.0428575,96592.0,96591.0,0.0001858]
[1734877184864,0.0428575,96592.0,96591.0,0.00502727]
[1734877185076,0.0428575,96592.0,96591.0,0.0001858]
[1734877185267,0.0428575,96592.0,96591.0,0.00502727]
[1734877185409,0.0428575,96592.0,96591.0,0.0001858]
[1734877186081,0.0428575,96592.0,96591.0,0.00502727]
[1734877186293,0.0428575,96592.0,96591.0,0.0001858]
[1734877186474,0.0428575,96592.0,96591.0,0.00502727]
[1734877186682,0.0428575,96592.0,96591.0,0.0001858]
[1734877186889,0.0428575,96592.0,96591.0,0.00502727]
[1734877187257,0.0428575,96592.0,96591.0,0.0001858]
[1734877187501,0.0428575,96592.0,96591.0,0.00502727]
[1734877187693,0.0428575,96592.0,96591.0,0.0001858]
[1734877189030,0.0428575,96592.0,96591.0,0.00502727]
[1734877189226,0.0428575,96592.0,96591.0,0.0001858]
[1734877189427,0.0428575,96592.0,96591.0,0.00502727]
[1734877189661,0.0428575,96592.0,96591.0,0.0001858]
[1734877194037,0.1214575,96592.0,96591.0,0.0001858]
[1734877195817,0.0428575,96592.0,96591.0,0.0001858]
[1734877196032,0.1214575,96592.0,96591.0,0.0001858]
[1734877196430,0.13185966,96592.0,96591.0,0.0001858]
[1734877196709,0.52996806,96592.0,96591.0,0.0001858]
[1734877197276,0.605465,96588.0,96587.0,8.57e-05]
[1734877197477,0.7067734,96588.0,96587.0,8.57e-05]
[1734877197757,0.72608852,96588.0,96587.0,8.57e-05]
[1734877197899,0.52478012,96588.0,96587.0,8.57e-05]
[1734877198659,0.64429183,96588.0,96587.0,8.57e-05]
[1734877198793,0.66369278,96588.0,96587.0,8.57e-05]
[1734877199192,0.86500118,96588.0,96587.0,8.57e-05]
[1734877199776,0.72617435,96588.0,96587.0,8.57e-05]
[1734877199962,0.72817435,96588.0,96587.0,8.57e-05]
[1734877204269,0.82817435,96588.0,96587.0,8.57e-05]
[1734877204918,0.82617435,96588.0,96587.0,8.57e-05]
[1734877205093,0.93133742,96588.0,96587.0,8.57e-05]
[1734877205508,0.91920257,96588.0,96587.0,8.57e-05]
[1734877206045,0.82617435,96588.0,96587.0,8.57e-05]
[1734877206250,0.73317435,96588.0,96587.0,8.57e-05]
[1734877206403,0.72617435,96588.0,96587.0,8.57e-05]
[1734877206809,0.83417435,96588.0,96587.0,8.57e-05]
[1734877207010,0.82617435,96588.0,96587.0,8.57e-05]
[1734877207394,0.83417435,96588.0,96587.0,8.57e-05]
[1734877207842,0.92716723,96588.0,96587.0,8.57e-05]
[1734877208798,0.84761915,96588.0,96587.0,8.57e-05]
[1734877211704,0.83417435,96588.0,96587.0,8.57e-05]
[1734877212700,0.434399,96572.0,96571.0,0.0001]
[1734877212902,0.5357074,96572.0,96571.0,0.0001]
[1734877213254,0.15,96569.0,96567.0,0.0100013]
[1734877213414,0.207107,96568.0,96567.0,0.0100013]
[1734877213637,0.22650795,96568.0,96567.0,0.0100013]
[1734877214719,0.24950795,96568.0,96567.0,0.0100013]
[1734877215748,0.25983895,96568.0,96567.0,0.0100013]
[1734877215950,0.58844735,96568.0,96567.0,0.0100013]
[1734877216372,0.68844735,96568.0,96567.0,0.0100013]
[1734877216715,0.68844735,96568.0,96567.0,0.0100871]
[1734877217477,0.73724735,96568.0,96567.0,0.0100871]
[1734877217674,0.7629261,96568.0,96567.0,0.0100871]
[1734877218082,0.7689261,96568.0,96567.0,0.0100871]
[1734877218426,0.7629261,96568.0,96567.0,0.0100871]
[1734877219224,0.7699261,96568.0,96567.0,0.0100871]
[1734877219582,0.74424735,96568.0,96567.0,0.0100871]
[1734877220195,0.384422,96561.0,96551.0,0.0001]
[1734877220471,0.6357304,96561.0,96551.0,0.0001]
[1734877220623,0.583242,96552.0,96551.0,0.0001]
[1734877220824,0.583242,96552.0,96542.0,0.00258952]
[1734877220825,0.3273,96543.0,96542.0,0.00258952]
[1734877221055,0.4286084,96543.0,96542.0,0.00258952]
[1734877221227,0.83493932,96543.0,96542.0,0.00258952]
[1734877221427,0.83548103,96543.0,96542.0,0.00258952]
[1734877221835,0.75592119,96543.0,96542.0,0.00258952]
[1734877222236,0.77892119,96543.0,96542.0,0.00258952]
[1734877222459,0.78392119,96543.0,96542.0,0.00258952]
[1734877223234,0.79456057,96543.0,96542.0,0.00258952]
[1734877226901,0.7635916,96543.0,96542.0,0.00258952]
[1734877230251,0.7635916,96543.0,96542.0,0.00267532]
[1734877230699,0.7945117,96543.0,96542.0,0.00267532]
[1734877233937,0.307178,96535.0,96531.0,0.0001]
[1734877234173,0.6611864,96535.0,96531.0,0.0001]
[1734877235027,0.71350745,96535.0,96531.0,0.0001]
[1734877237200,0.71150745,96535.0,96531.0,0.0001]
[1734877237538,0.71950745,96535.0,96531.0,0.0001]
[1734877237740,0.71150745,96535.0,96531.0,0.0001]
[1734877238207,0.71850745,96535.0,96531.0,0.0001]
[1734877238894,0.76510745,96535.0,96531.0,0.0001]
[1734877239084,0.75810745,96535.0,96531.0,0.0001]
[1734877239705,0.386908,96521.0,96507.0,0.01302648]
[1734877239901,0.2,96508.0,96507.0,0.01302648]
[1734877240106,0.2,96495.0,96494.0,8.56e-05]
[1734877240283,0.7302724,96495.0,96494.0,8.56e-05]
[1734877240483,0.7302724,96495.0,96490.0,3e-07]
[1734877240484,0.2,96491.0,96490.0,3e-07]
[1734877240689,0.6815814,96491.0,96490.0,3e-07]
[1734877240895,0.63190245,96491.0,96490.0,3e-07]
[1734877241227,0.2,96472.0,96470.0,8.57e-05]
[1734877241420,0.6816224,96472.0,96470.0,8.57e-05]
[1734877241958,0.73194345,96472.0,96470.0,8.57e-05]
[1734877242359,0.1,96452.0,96404.0,0.207458]
[1734877242563,0.1,96447.0,96412.0,0.00103709]
[1734877242763,0.5816774,96446.0,96404.0,0.207458]
[1734877242966,0.5816774,96446.0,96410.0,0.207446]
[1734877243246,0.63199845,96446.0,96418.0,0.207428]
[1734877243549,0.63199845,96446.0,96425.0,0.207414]
[1734877243550,0.32462945,96446.0,96425.0,0.207414]
[1734877243751,0.2238621,96446.0,96425.0,0.207414]
[1734877243998,0.0738621,96446.0,96425.0,0.207414]
[1734877244199,0.0738621,96446.0,96431.0,0.414901]
[1734877244414,0.02354105,96446.0,96431.0,0.414901]
[1734877244662,0.00054105,96446.0,96431.0,0.2075]
[1734877244862,0.00054105,96446.0,96431.0,0.414901]
[1734877245243,0.00054105,96446.0,96437.0,0.2074747]
[1734877246199,0.00054105,96446.0,96445.0,0.3303577]
[1734877246526,0.00054105,96446.0,96445.0,0.44072821]
[1734877247567,0.00154105,96446.0,96445.0,0.44072821]
[1734877248496,0.0308027,96479.0,96467.0,0.207323]
[1734877248497,0.01925169,96472.0,96467.0,0.207323]
[1734877248852,0.01925169,96478.0,96467.0,0.207323]
[1734877249306,0.01925169,96482.0,96468.0,0.00900273]
[1734877249530,0.207294,96481.0,96468.0,0.00900273]
[1734877249729,0.01925169,96481.0,96469.0,0.20732]
[1734877249866,0.023,96480.0,96469.0,0.20732]
[1734877250072,0.023,96480.0,96470.0,0.207318]
[1734877250287,0.01925169,96479.0,96470.0,0.207318]
[1734877250494,0.023,96478.0,96471.0,0.00899622]
[1734877250725,0.01925169,96479.0,96471.0,0.00899622]
[1734877250935,0.01925169,96479.0,96445.0,0.22434835]
[1734877250936,0.1013084,96478.0,96445.0,0.22434835]
[1734877251130,0.001,96446.0,96445.0,0.12603995]
[1734877251360,0.1,96477.0,96445.0,0.07743995]
[1734877251560,0.207335,96463.0,96445.0,0.07743995]
[1734877251759,0.207335,96463.0,96446.0,0.207369]
[1734877251916,0.173,96466.0,96447.0,0.207367]
[1734877252130,0.173,96466.0,96448.0,0.00103679]
[1734877252360,0.023,96465.0,96456.0,0.207346]
[1734877252704,0.023,96465.0,96445.0,0.08043995]
[1734877252918,0.207331,96464.0,96446.0,0.207369]
[1734877253146,0.207335,96462.0,96446.0,0.207369]
[1734877253352,0.023,96455.0,96445.0,0.00013995]
[1734877253551,0.207357,96452.0,96445.0,0.00013995]
[1734877253678,0.023,96455.0,96445.0,0.00013995]
[1734877253899,0.023,96446.0,96445.0,0.00013995]
[1734877254743,0.04225169,96446.0,96445.0,0.00013995]
[1734877255407,0.29356009,96446.0,96445.0,0.00013995]
[1734877255955,0.39356009,96446.0,96445.0,0.00013995]
[1734877256157,0.29356009,96446.0,96445.0,0.00013995]
[1734877256378,0.32438405,96446.0,96445.0,0.00013995]
[1734877256562,0.42438405,96446.0,96445.0,0.00013995]
[1734877256940,0.50358405,96446.0,96445.0,0.00013995]
[1734877257342,0.580387,96438.0,96437.0,7e-07]
[1734877257546,0.580387,96438.0,96431.0,7e-07]
[1734877257547,0.6596,96432.0,96431.0,7e-07]
[1734877257748,0.7609084,96432.0,96431.0,7e-07]
[1734877258202,0.81098405,96432.0,96431.0,7e-07]
[1734877258918,0.81098405,96432.0,96411.0,0.0001]
[1734877258919,0.380443,96412.0,96411.0,0.0001]
[1734877259101,0.4817514,96412.0,96411.0,0.0001]
[1734877259319,0.50100309,96412.0,96411.0,0.0001]
[1734877259812,0.60100309,96412.0,96411.0,0.0001]
[1734877260323,0.78976516,96412.0,96411.0,0.0001]
[1734877260533,0.78976516,96412.0,96391.0,0.0001]
[1734877260534,0.457466,96401.0,96391.0,0.0001]
[1734877260736,0.4587744,96401.0,96391.0,0.0001]
[1734877261152,0.47802609,96401.0,96391.0,0.0001]
[1734877261773,0.48853679,96401.0,96391.0,0.0001]
[1734877262178,0.47802609,96401.0,96391.0,0.0001]
[1734877262385,0.2,96392.0,96371.0,0.0001]
[1734877262591,0.207527,96373.0,96371.0,0.0001]
[1734877262790,0.173,96390.0,96371.0,0.0001]
[1734877263004,0.173,96386.0,96372.0,0.207528]
[1734877263212,0.207516,96379.0,96371.0,0.0001]
[1734877263412,0.20752,96376.0,96373.0,0.00786199]
[1734877263609,0.173,96377.0,96372.0,0.00786416]
[1734877263829,0.023,96375.0,96371.0,0.0001]
[1734877264195,0.023,96373.0,96371.0,0.0001]
[1734877264609,0.023,96374.0,96371.0,0.0001]
[1734877264808,0.023,96372.0,96371.0,0.0001]
[1734877265260,0.2743084,96372.0,96371.0,0.0001]
[1734877265511,0.60283762,96372.0,96371.0,0.0001]
[1734877265678,0.52207233,96372.0,96371.0,0.0001]
[1734877265893,0.04223471,96372.0,96371.0,0.0001]
[1734877266083,0.07301025,96372.0,96371.0,0.0001]
[1734877266227,0.17431865,96372.0,96371.0,0.00670942]
[1734877266429,0.14354311,96372.0,96371.0,0.00670942]
[1734877266642,0.29354311,96372.0,96371.0,0.0001]
[1734877267331,0.19223471,96372.0,96371.0,0.0001]
[1734877267534,0.04223471,96372.0,96371.0,0.0001]
[1734877268330,0.14354311,96372.0,96371.0,0.0001]
[1734877268571,0.29354311,96372.0,96371.0,0.0001]
[1734877269336,0.32431865,96372.0,96371.0,0.0001]
[1734877269961,0.023,96369.0,96351.0,0.0001]
[1734877270176,0.023,96367.0,96354.0,0.207567]
[1734877270503,0.1243084,96369.0,96354.0,0.21422794]
[1734877270708,0.023,96356.0,96354.0,0.00666094]
[1734877271019,0.023,96354.0,96351.0,0.0001]
[1734877271225,0.1243084,96354.0,96351.0,0.0001]
[1734877271396,0.04223471,96354.0,96351.0,0.0001]
[1734877273207,0.04223471,96354.0,96337.0,0.207602]
[1734877273417,0.04223471,96353.0,96337.0,0.207602]
[1734877273654,0.023,96351.0,96338.0,0.00670348]
[1734877273861,0.04223471,96353.0,96338.0,0.00670348]
[1734877273862,0.207576,96350.0,96338.0,0.00670348]
[1734877274090,0.023,96353.0,96339.0,0.2076]
[1734877274291,0.023,96353.0,96340.0,0.00669912]
[1734877274514,0.023,96351.0,96340.0,0.00669912]
[1734877274738,0.023,96353.0,96348.0,0.207578]
[1734877275286,0.023,96357.0,96349.0,0.00667858]
[1734877276214,0.023,96355.0,96345.0,0.207585]
[1734877276413,0.023,96362.0,96338.0,0.0754]
[1734877276636,0.023,96362.0,96352.0,0.207572]
[1734877276833,0.01923471,96363.0,96357.0,0.20756]
[1734877277044,0.1013084,96363.0,96353.0,0.00669165]
[1734877277243,0.1013084,96363.0,96358.0,0.00668077]
[1734877277494,0.20755,96362.0,96345.0,0.207586]
[1734877277694,0.01923471,96365.0,96350.0,0.207574]
[1734877277952,0.01923471,96362.0,96351.0,0.00669601]
[1734877278151,0.023,96361.0,96352.0,0.207572]
[1734877278389,0.023,96361.0,96351.0,0.00669601]
[1734877278605,0.023,96367.0,96353.0,0.42182965]
[1734877278771,0.023,96367.0,96353.0,0.207568]
[1734877278949,0.023,96365.0,96354.0,0.00668948]
[1734877279153,0.20755,96362.0,96354.0,0.00668948]
[1734877279355,0.20755,96362.0,96350.0,8.58e-05]
[1734877279356,0.207572,96352.0,96350.0,8.58e-05]
[1734877279557,0.023,96351.0,96350.0,8.58e-05]
[1734877280470,0.023,96355.0,96350.0,8.58e-05]
[1734877280865,0.023,96353.0,96350.0,8.58e-05]
[1734877281274,0.023,96351.0,96350.0,8.58e-05]
[1734877281930,0.04223349,96351.0,96350.0,8.58e-05]
[1734877283004,0.07300903,96351.0,96350.0,8.58e-05]
[1734877283389,0.04223349,96351.0,96350.0,8.58e-05]
[1734877284190,0.07300903,96351.0,96350.0,8.58e-05]
[1734877285037,0.023,96351.0,96350.0,8.58e-05]
[1734877285222,0.07321619,96351.0,96350.0,8.58e-05]
[1734877287423,0.05021619,96351.0,96350.0,8.58e-05]
[1734877287838,0.05021619,96351.0,96350.0,0.00678938]
[1734877288036,0.05021619,96351.0,96350.0,8.58e-05]
[1734877288238,0.05021619,96351.0,96350.0,0.00678938]
[1734877288469,0.05021619,96351.0,96350.0,8.58e-05]
[1734877288717,0.07321619,96351.0,96350.0,0.00678938]
[1734877288918,0.07321619,96351.0,96350.0,8.58e-05]
[1734877289148,0.07321619,96351.0,96350.0,0.00678938]
[1734877289330,0.05021619,96351.0,96350.0,8.58e-05]
[1734877289927,0.023,96359.0,96350.0,8.58e-05]
[1734877290091,0.023,96357.0,96350.0,8.58e-05]
[1734877290525,0.023,96355.0,96351.0,0.0066955]
[1734877290897,0.023,96355.0,96350.0,8.58e-05]
[1734877291416,0.023,96353.0,96350.0,8.58e-05]
[1734877291645,0.023,96351.0,96350.0,8.58e-05]
[1734877292027,0.04241915,96351.0,96350.0,8.58e-05]
[1734877294340,0.01941915,96351.0,96350.0,8.58e-05]
[1734877294741,0.207563,96356.0,96350.0,8.58e-05]
[1734877295467,0.207563,96356.0,96351.0,0.00670166]
[1734877295688,0.207568,96354.0,96351.0,0.00670166]
[1734877295817,0.207568,96354.0,96350.0,8.58e-05]
[1734877296012,0.5164454,96354.0,96350.0,8.58e-05]
[1734877296624,0.207572,96352.0,96350.0,8.58e-05]
[1734877297066,0.01944714,96351.0,96350.0,8.58e-05]
[1734877297826,0.207572,96352.0,96350.0,8.58e-05]
[1734877302462,0.4039084,96351.0,96350.0,8.58e-05]
[1734877302702,0.4039084,96351.0,96337.0,0.03239037]
[1734877302703,0.1,96331.0,96330.0,4.8e-07]
[1734877302903,0.457684,96300.0,96299.0,0.09292802]
[1734877303106,0.5589924,96300.0,96299.0,0.05139002]
[1734877303378,0.123,96295.0,96294.0,0.15070473]
[1734877303581,0.123,96295.0,96238.0,0.1]
[1734877303582,0.480716,96285.0,96284.0,0.27507426]
[1734877303783,0.5820244,96285.0,96284.0,0.27507426]
[1734877304178,0.5820244,96285.0,96284.0,0.27561531]
[1734877304391,0.5820244,96285.0,96284.0,0.00054105]
[1734877304718,0.48976433,96285.0,96284.0,0.00054105]
[1734877305011,0.1,96277.0,96247.0,0.00103893]
[1734877305217,0.1,96277.0,96253.0,0.207785]
[1734877305218,0.15,96275.0,96253.0,0.207785]
[1734877305556,0.15,96266.0,96244.0,0.207803]
[1734877305777,0.207771,96260.0,96231.0,0.0001]
[1734877305997,0.1013084,96259.0,96231.0,0.00113901]
[1734877306243,0.05030957,96265.0,96232.0,0.1013084]
[1734877306443,0.1013084,96264.0,96233.0,0.00103896]
[1734877306555,0.15161797,96264.0,96249.0,0.207792]
[1734877306999,0.15161797,96264.0,96245.0,0.207802]
[1734877307000,0.207766,96262.0,96245.0,0.207802]
[1734877307200,0.1013084,96261.0,96245.0,0.207802]
[1734877307400,0.1013084,96261.0,96246.0,0.2078]
[1734877307626,0.05030957,96260.0,96246.0,0.2078]
[1734877307831,0.3137255,96251.0,96246.0,0.2078]
[1734877308061,0.3137255,96251.0,96242.0,0.207809]